bitfinex/quotes_SOLUSD_20250210
["timestamp","ask_amount","ask_price","bid_price","bid_amount"]
[1739158481789,0.12549,203.64,203.53,0.063]
[1739158481983,0.12549,203.66,203.53,0.063]
[1739158481984,2.0,203.69,203.53,0.063]
[1739158482180,2.0,203.69,203.54,18.82079687]
[1739158482493,0.12549,203.68,203.54,18.82079687]
[1739158482805,10.1977,203.79,203.66,20.0]
[1739158482988,3.9256,203.79,203.67,18.82079687]
[1739158483295,3.9256,203.79,203.64,18.82079687]
[1739158483477,3.9246,203.84,203.68,18.82079687]
[1739158483682,3.9246,203.84,203.7,18.82079687]
[1739158483882,1.12549,203.81,203.68,18.82079687]
[1739158484088,0.12549,203.81,203.68,18.82079687]
[1739158484279,11.04170602,203.85,203.68,18.82079687]
[1739158484280,0.10471602,203.85,203.75,38.82079687]
[1739158484602,0.10471602,203.85,203.81,18.82079687]
[1739158485276,0.10471602,203.85,203.83,18.82079687]
[1739158485476,0.10471602,203.85,203.84,0.73565765]
[1739158485878,0.10471602,203.85,203.84,4.78574765]
[1739158486076,0.10471602,203.85,203.84,5.78574765]
[1739158486293,0.10471602,203.85,203.84,1.63271977]
[1739158486672,0.09688165,203.87,203.85,20.0]
[1739158486986,0.09688165,203.87,203.85,39.94628687]
[1739158487174,0.09688165,203.87,203.85,38.82079687]
[1739158487379,0.09688165,203.87,203.84,0.89706212]
[1739158487585,0.09688165,203.87,203.79,18.82079687]
[1739158487918,0.09688165,203.87,203.83,18.82079687]
[1739158488102,0.09688165,203.87,203.81,312.0]
[1739158488103,0.09688165,203.87,203.81,18.82079687]
[1739158488308,3.9223,203.96,203.83,18.82079687]
[1739158488605,0.12549,203.93,203.82,20.0]
[1739158488812,4.02913699,203.94,203.82,20.73579081]
[1739158488813,0.10633699,203.94,203.82,20.73579081]
[1739158488971,0.10633699,203.94,203.87,18.82079687]
[1739158489181,0.10633699,203.94,203.91,18.82079687]
[1739158489611,0.10633699,203.94,203.93,18.82079687]
[1739158489990,0.10633699,203.94,203.93,20.0]
[1739158490314,0.10633699,203.94,203.87,18.82079687]
[1739158490487,0.10633699,203.94,203.89,18.82079687]
[1739158490810,0.10633699,203.94,203.93,18.82079687]
[1739158491795,0.10633699,203.94,203.89,18.82079687]
[1739158492782,0.10633699,203.94,203.87,18.82079687]
[1739158492989,0.10633699,203.94,203.85,18.82079687]
[1739158493215,0.10633699,203.94,203.84,3.9245]
[1739158493216,0.10633699,203.94,203.88,20.0]
[1739158493382,0.09878444,203.91,203.88,0.7355329]
[1739158493579,8.444e-05,203.91,203.9,37.76708374]
[1739158493810,5.39e-06,203.94,203.9,39.6278148]
[1739158493987,0.09539434,203.95,203.93,22.99467687]
[1739158493988,9.973e-05,203.95,203.93,22.99467687]
[1739158494311,9.973e-05,203.95,203.94,313.75713906]
[1739158494515,9.973e-05,203.95,203.94,313.89662225]
[1739158494716,9.973e-05,203.95,203.94,344.14760225]
[1739158494886,9.973e-05,203.95,203.94,314.14760225]
[1739158495306,9.973e-05,203.95,203.94,313.02211225]
[1739158496200,9.973e-05,203.95,203.94,312.89662225]
[1739158496808,0.03,204.1,203.97,20.0]
[1739158497013,0.15549,204.1,203.97,38.82079687]
[1739158497190,0.156,204.09,203.97,38.82079687]
[1739158497392,0.156,204.09,203.98,29.74]
[1739158497601,0.156,204.09,203.97,38.82079687]
[1739158497807,0.156,204.09,203.99,48.56079687]
[1739158497999,0.156,204.09,204.02,3.9211]
[1739158498407,0.156,204.09,204.0,3.9215]
[1739158498807,0.156,204.09,203.98,3.9218]
[1739158499194,4.0759,204.09,203.97,18.82079687]
[1739158499426,4.0759,204.09,203.95,48.56079687]
[1739158499724,15.53733853,204.08,203.93,3.9228]
[1739158500025,3.9202,204.07,203.93,3.9228]
[1739158500200,0.12549,204.01,203.91,3.9231]
[1739158500401,0.12549,204.01,203.89,3.9235]
[1739158500717,0.12549,203.99,203.84,312.063]
[1739158500921,13.53733853,203.97,203.85,3.9243]
[1739158501215,0.12549,204.01,203.87,18.82079687]
[1739158501421,3.9202,204.07,203.95,18.82079687]
[1739158501622,1.6796,204.1,203.97,48.56079687]
[1739158501807,0.03,204.1,203.99,18.82079687]
[1739158501989,0.03,204.1,203.97,48.56079687]
[1739158502194,0.03,204.1,203.99,48.56079687]
[1739158502727,0.03,204.1,204.02,20.0]
[1739158502901,0.03,204.1,204.03,48.56079687]
[1739158503220,0.03,204.1,204.01,29.74]
[1739158503418,0.03,204.1,204.03,48.56079687]
[1739158503720,0.03,204.1,204.01,18.82079687]
[1739158504099,0.03,204.1,203.97,18.82079687]
[1739158504322,0.03,204.1,203.97,22.74269687]
[1739158504626,1.03,204.1,203.95,23.47822951]
[1739158504822,4.076,204.08,203.95,22.74319687]
[1739158505001,14.53733853,204.07,203.93,22.74349687]
[1739158505191,13.53733853,204.05,203.93,3.9227]
[1739158505394,1.0,204.02,203.87,18.82079687]
[1739158505597,13.53733853,203.99,203.85,18.82079687]
[1739158505926,2.0,204.07,203.89,18.82079687]
[1739158506105,1.0,204.04,203.93,18.82079687]
[1739158506291,13.53733853,204.03,203.88,29.74]
[1739158506622,3.9204,204.06,203.91,48.56079687]
[1739158506823,14.66282853,204.05,203.88,0.73547533]
[1739158506996,14.66282853,204.05,203.87,18.82079687]
[1739158506997,13.53733853,204.01,203.87,18.82079687]
[1739158507196,1.0,204.05,203.87,3.9239]
[1739158507404,4.9204,204.06,203.93,18.82079687]
[1739158507599,0.156,204.08,203.98,20.0]
[1739158507799,0.156,204.08,203.94,0.73532384]
[1739158507800,0.156,204.08,203.99,18.82079687]
[1739158508827,0.186,204.08,204.01,18.82079687]
[1739158509009,0.186,204.08,203.99,22.74239687]
[1739158509402,0.186,204.08,203.99,18.82079687]
[1739158509632,14.53733853,204.07,203.93,18.82079687]
[1739158510008,2.0,204.03,203.89,0.063]
[1739158510329,13.9061,204.08,203.89,0.063]
[1739158510330,4.04719,203.99,203.89,0.063]
[1739158510713,13.41184853,203.98,203.89,0.063]
[1739158510918,13.41184853,203.96,203.89,0.063]
[1739158511096,14.7261,203.99,203.89,0.063]
[1739158511301,1.0,203.98,203.89,0.063]
[1739158511612,14.7261,203.99,203.89,0.063]
[1739158511814,3.9217,203.99,203.89,0.063]
[1739158512118,7.1334,204.0,203.89,0.063]
[1739158512119,3.9231,203.92,203.89,0.063]
[1739158512299,0.12549,203.91,203.89,0.063]
[1739158512499,3.9223,203.96,203.89,0.063]
[1739158512899,7.3194,204.08,203.92,18.82079687]
[1739158513102,3.9204,204.06,203.94,18.82079687]
[1739158513299,13.53733853,204.04,203.9,18.82079687]
[1739158513520,3.9204,204.06,203.94,18.82079687]
[1739158514102,3.9207,204.04,203.89,0.063]
[1739158514321,0.25098,204.03,203.89,0.063]
[1739158514634,3.9207,204.04,203.9,18.82079687]
[1739158515127,3.9207,204.04,203.89,0.063]
[1739158515128,13.66282853,203.99,203.89,0.063]
[1739158515315,0.12549,203.96,203.89,0.063]
[1739158515721,0.12549,203.96,203.82,3.9248]
[1739158516028,0.12549,203.98,203.82,22.74559687]
[1739158516210,0.12549,203.98,203.76,9.8152]
[1739158516211,13.66282853,203.95,203.78,18.82079687]
[1739158516523,13.66282853,203.95,203.78,22.74659687]
[1739158516704,13.53733853,203.95,203.82,18.82079687]
[1739158517027,2.0,203.98,203.82,18.82079687]
[1739158517334,14.66282853,203.95,203.78,22.74659687]
[1739158517500,13.66282853,203.91,203.78,3.9258]
[1739158517703,0.12549,203.91,203.76,22.74679687]
[1739158517905,1.5859,203.95,203.8,18.82079687]
[1739158518118,11.3885,204.03,203.88,18.82079687]
[1739158518322,3.9202,204.07,203.92,18.82079687]
[1739158518524,3.9202,204.07,203.94,18.82079687]
[1739158518919,13.53733853,204.06,203.94,18.82079687]
[1739158519256,13.53733853,204.06,203.92,18.82079687]
[1739158519534,6.3194,204.08,203.94,18.82079687]
[1739158519739,6.3194,204.08,203.87,1.0]
[1739158519740,6.3194,204.08,203.98,18.82079687]
[1739158520041,13.66282853,204.07,203.9,18.82079687]
[1739158520220,13.66282853,204.07,203.91,3.9232]
[1739158520221,13.41184853,204.04,203.91,3.9232]
[1739158520426,17.1194,204.08,203.94,18.82079687]
[1739158520427,6.3194,204.08,203.94,18.82079687]
[1739158520630,10.2395,204.08,203.94,18.82079687]
[1739158520818,10.2395,204.08,203.91,13.7314]
[1739158520819,13.66282853,204.07,203.91,3.9232]
[1739158521337,1.0,204.03,203.89,3.9235]
[1739158521505,0.12549,204.01,203.89,3.9235]
[1739158521714,22.0395,204.08,203.9,18.82079687]
[1739158522019,22.0395,204.08,203.94,18.82079687]
[1739158522020,10.2395,204.08,203.94,18.82079687]
[1739158522415,6.3194,204.08,203.95,3.9225]
[1739158522610,0.186,204.08,203.99,18.82079687]
[1739158522811,0.03,204.06,203.97,18.82079687]
[1739158524249,0.03,204.06,203.97,3.922]
[1739158524407,0.03,204.06,204.01,18.82079687]
[1739158524813,0.03,204.06,204.03,18.82079687]
[1739158525040,0.03,204.06,203.97,18.82079687]
[1739158525340,0.03,204.06,204.01,18.82079687]
[1739158525546,6.3236,204.16,204.01,18.82079687]
[1739158525847,3.9189,204.14,204.01,18.82079687]
[1739158526210,4.9189,204.14,203.99,38.82079687]
[1739158526531,3.9181,204.18,204.03,18.82079687]
[1739158526934,0.25098,204.12,203.96,10.54071024]
[1739158527139,0.25098,204.12,203.98,3.9218]
[1739158527444,3.9181,204.18,204.03,18.82079687]
[1739158527829,13.53733853,204.17,204.03,18.82079687]
[1739158528146,5.4637,204.2,204.05,18.82079687]
[1739158528439,5.4637,204.2,204.06,3.9204]
[1739158528644,0.25098,204.18,204.06,3.9204]
[1739158528851,0.12549,204.16,204.04,3.9207]
[1739158529015,1.12549,204.18,204.04,3.9207]
[1739158529016,5.4637,204.2,204.04,3.9207]
[1739158529218,5.4637,204.2,204.07,18.82079687]
[1739158529523,13.53733853,204.19,204.07,18.82079687]
[1739158530025,0.12549,204.19,204.05,38.82079687]
[1739158530337,4.04339,204.19,204.06,3.9204]
[1739158530721,0.12549,204.17,204.06,3.9204]
[1739158530931,17.45523853,204.19,204.06,3.9204]
[1739158530932,3.9179,204.19,204.06,3.9204]
[1739158531114,1.5459,204.2,204.06,3.9204]
[1739158531115,1.5459,204.2,204.06,23.9204]
[1739158531314,0.12549,204.19,204.06,23.9204]
[1739158531517,13.53733853,204.19,204.06,23.9204]
[1739158531712,5.4637,204.2,204.06,23.9204]
[1739158531918,5.4637,204.2,204.07,18.82079687]
[1739158532126,13.53733853,204.19,204.06,3.9204]
[1739158532341,13.53733853,204.16,204.04,3.9206]
[1739158532726,3.9179,204.19,204.05,48.56079687]
[1739158532921,3.9179,204.19,204.04,22.74139687]
[1739158533236,1.5459,204.2,204.05,18.82079687]
[1739158533421,1.5459,204.2,204.07,18.82079687]
[1739158533623,1.5459,204.2,204.07,48.56079687]
[1739158533841,1.5459,204.2,204.05,18.82079687]
[1739158533842,0.12549,204.19,204.05,18.82079687]
[1739158534034,1.5459,204.2,204.06,19.55564039]
[1739158534232,1.5459,204.2,204.09,20.0]
[1739158534433,1.5459,204.2,204.1,3.9196]
[1739158534643,0.12549,204.19,204.08,3.9198]
[1739158534823,0.12549,204.19,204.07,20.0]
[1739158535638,13.53733853,204.19,204.06,3.9832]
[1739158535837,0.12549,204.17,204.06,0.063]
[1739158536050,5.4936,204.2,204.06,3.9833]
[1739158536950,1.5759,204.2,204.07,18.82079687]
[1739158537435,0.03,204.2,204.09,18.82079687]
[1739158538522,0.03,204.2,204.1,3.9196]
[1739158538847,0.03,204.2,204.11,48.56079687]
[1739158539052,0.03,204.2,204.1,13.7187]
[1739158539227,0.03,204.2,204.13,20.0]
[1739158539427,0.03,204.2,204.1,43.4587]
[1739158539740,0.03,204.2,204.1,62.27949687]
[1739158540050,0.03,204.2,204.1,13.7187]
[1739158540252,0.03,204.2,204.1,3.9196]
[1739158540429,0.03,204.2,204.06,28.68459687]
[1739158540628,13.56733853,204.2,204.07,13.7207]
[1739158540942,0.03,204.2,204.09,18.82079687]
[1739158541245,0.03,204.2,204.07,14.45553442]
[1739158541246,0.03,204.2,204.08,29.74]
[1739158541624,0.03,204.2,204.1,29.74]
[1739158542139,0.03,204.2,204.1,48.56079687]
[1739158542347,0.03,204.2,204.1,29.74]
[1739158542550,0.03,204.2,204.11,3.9194]
[1739158544940,0.15549,204.2,204.09,3.9197]
[1739158545732,0.25098,204.19,204.06,0.063]
[1739158545929,13.66282853,204.17,204.06,0.063]
[1739158546246,13.41184853,204.17,204.06,0.063]
[1739158547050,3.9478,204.2,204.06,0.063]
[1739158547358,0.03,204.2,204.12,20.0]
[1739158548031,0.03,204.2,204.13,3.919]
[1739158548765,0.03,204.2,204.11,29.74]
[1739158549062,0.03,204.2,204.11,3.9192]
[1739158550230,0.03,204.2,204.12,29.74]
[1739158550431,0.03,204.2,204.11,23.9192]
[1739158550740,0.03,204.2,204.11,63.4578]
[1739158552551,0.03,204.2,204.11,53.6592]
[1739158553258,0.03,204.2,204.07,33.6602]
[1739158553960,0.03,204.2,204.07,43.4607]
[1739158554665,0.15549,204.2,204.07,33.6602]
[1739158554849,0.03,204.2,204.07,33.6602]
[1739158555034,0.03,204.2,204.07,43.4607]
[1739158555483,0.03,204.2,204.07,33.6602]
[1739158555642,0.03,204.2,204.07,3.9202]
[1739158555643,0.15549,204.2,204.07,3.9202]
[1739158555837,0.03,204.2,204.07,3.9202]
[1739158556341,0.03,204.2,204.06,0.063]
[1739158556531,0.12549,204.19,204.06,0.063]
[1739158556953,0.03,204.2,204.06,0.063]
[1739158557147,0.03,204.2,204.08,29.74]
[1739158557482,0.03,204.2,204.11,20.0]
[1739158557647,0.03,204.2,204.1,29.74]
[1739158558084,0.03,204.2,204.13,20.0]
[1739158558456,0.03,204.2,204.14,3.9188]
[1739158562581,0.03,204.2,204.19,11.53352663]
[1739158562962,0.03,204.2,204.19,31.53352663]
[1739158563160,6.312,204.31,204.22,20.0]
[1739158563373,1.5991,204.35,204.26,11.53352663]
[1739158563571,6.312,204.38,204.3,11.53352663]
[1739158563859,6.312,204.38,204.32,11.53352663]
[1739158564066,0.03,204.41,204.26,1.96509287]
[1739158564381,0.03,204.41,204.35,11.53352663]
[1739158564554,0.03,204.41,204.36,3.9146]
[1739158564878,0.03,204.41,204.3,11.53352663]
[1739158565091,0.03,204.41,204.34,11.53352663]
[1739158565458,0.03,204.41,204.3,11.53352663]
[1739158565760,0.03,204.41,204.29,3.916]
[1739158565985,0.03,204.41,204.29,15.44952663]
[1739158566680,0.03,204.41,204.29,3.916]
[1739158566881,0.03,204.41,204.29,15.44952663]
[1739158567254,0.03,204.41,204.31,11.53352663]
[1739158567454,0.03,204.41,204.33,11.53352663]
[1739158568263,0.03,204.41,204.32,11.53352663]
[1739158568467,0.03,204.41,204.29,11.53352663]
[1739158568683,0.03,204.41,204.28,31.53352663]
[1739158569182,0.03,204.41,204.3,11.53352663]
[1739158569560,3.9437,204.41,204.3,15.44912663]
[1739158569758,0.03,204.41,204.31,11.53352663]
[1739158569961,0.03,204.41,204.32,11.53352663]
[1739158570188,0.03,204.41,204.31,11.53352663]
[1739158570556,0.03,204.41,204.28,3.916]
[1739158570557,0.15549,204.41,204.28,3.916]
[1739158570762,0.03,204.41,204.28,3.916]
[1739158571085,0.03,204.41,204.28,15.44952663]
[1739158571390,13.56733853,204.41,204.26,3.9164]
[1739158571558,0.12549,204.39,204.26,3.9164]
[1739158572088,3.9138,204.4,204.28,11.53352663]
[1739158572286,3.9138,204.4,204.26,3.9164]
[1739158572489,13.53733853,204.39,204.26,23.9164]
[1739158572780,3.9138,204.4,204.19,1.22874879]
[1739158572781,0.12549,204.35,204.22,3.9173]
[1739158573084,13.41184853,204.33,204.18,3.9179]
[1739158573266,13.41184853,204.33,204.21,11.53352663]
[1739158573591,6.2505,204.37,204.25,11.53352663]
[1739158573776,6.2505,204.37,204.28,11.53352663]
[1739158573964,6.2505,204.37,204.29,11.53352663]
[1739158574162,6.2505,204.37,204.27,11.53352663]
[1739158574366,6.2505,204.37,204.23,3.9171]
[1739158574367,13.41184853,204.36,204.23,3.9171]
[1739158574778,6.2505,204.37,204.26,11.53352663]
[1739158574968,6.2505,204.37,204.27,11.53352663]
[1739158575171,13.41184853,204.36,204.24,11.53352663]
[1739158575390,6.2505,204.37,204.25,11.53352663]
[1739158575567,10.165,204.37,204.23,11.53352663]
[1739158575765,13.41184853,204.36,204.23,11.53352663]
[1739158576081,13.41184853,204.36,204.21,12.26777753]
[1739158576082,0.12549,204.35,204.21,12.26777753]
[1739158576291,0.12549,204.35,204.19,15.45142663]
[1739158576475,0.25098,204.35,204.19,15.45142663]
[1739158576872,0.25098,204.35,204.16,11.53352663]
[1739158577192,13.66282853,204.31,204.13,3.919]
[1739158577491,3.9163,204.27,204.13,3.919]
[1739158577696,1.6372,204.3,204.13,3.919]
[1739158577697,3.916,204.29,204.15,11.53352663]
[1739158577859,1.6372,204.3,204.2,11.53352663]
[1739158578066,3.9149,204.35,204.23,11.53352663]
[1739158578292,13.53733853,204.34,204.2,11.53352663]
[1739158578470,0.12549,204.33,204.16,31.53352663]
[1739158578682,0.12549,204.33,204.16,11.53352663]
[1739158578876,0.12549,204.33,204.13,15.45252663]
[1739158578877,0.12549,204.31,204.13,15.45252663]
[1739158579174,0.12549,204.33,204.13,3.919]
[1739158579175,13.53733853,204.28,204.13,3.919]
[1739158579389,0.12549,204.25,204.11,3.9193]
[1739158579595,3.9169,204.24,204.11,3.9193]
[1739158579793,13.53733853,204.23,204.11,3.9193]
[1739158579985,13.53733853,204.23,204.06,0.79779783]
[1739158579986,0.12549,204.22,204.06,11.59652663]
[1739158580284,15.17453853,204.23,204.06,0.063]
[1739158580285,17.40492636,204.23,204.06,0.063]
[1739158580715,17.40492636,204.23,204.06,3.9833]
[1739158580877,17.40492636,204.23,204.06,0.063]
[1739158580878,13.66282853,204.18,204.06,0.063]
[1739158581205,3.86758783,204.23,203.98,7.66086207]
[1739158581206,6.2505,204.09,203.98,7.66086207]
[1739158581580,3.92,204.08,203.98,7.66086207]
[1739158581777,6.2505,204.17,204.13,0.063]
[1739158582279,13.66282853,204.16,204.0,11.53352663]
[1739158582487,13.66282853,204.16,203.98,15.45532663]
[1739158582690,14.66282853,204.16,203.93,0.063]
[1739158582902,13.66282853,204.14,203.94,3.9227]
[1739158583105,21.0,204.14,203.94,3.9227]
[1739158583302,21.0,204.14,203.93,0.063]
[1739158583303,13.66282853,204.08,203.93,0.063]
[1739158583617,11.8072,204.11,203.97,11.53352663]
[1739158583787,11.8072,204.11,203.98,11.53352663]
[1739158584208,11.8072,204.11,204.0,11.53352663]
[1739158584407,11.8072,204.11,204.01,11.53352663]
[1739158584408,7.8877,204.11,204.01,11.53352663]
[1739158584793,3.9196,204.1,203.99,11.53352663]
[1739158585092,13.66282853,204.09,203.93,0.063]
[1739158585683,3.92,204.08,203.93,0.063]
[1739158586289,13.66282853,204.07,203.93,0.063]
[1739158587202,13.66282853,204.05,203.93,0.063]
[1739158587401,0.12549,204.01,203.93,0.063]
[1739158587582,0.12549,203.96,203.93,0.063]
[1739158587989,1.6372,203.98,203.93,0.063]
[1739158588187,13.53733853,203.97,203.93,0.063]
[1739158589008,1.6372,203.98,203.93,0.063]
[1739158589381,0.12549,203.97,203.93,0.063]
[1739158589788,1.6372,203.98,203.93,0.063]
[1739158590578,5.5592,203.98,203.93,0.063]
[1739158591094,1.6372,203.98,203.93,0.063]
[1739158591409,3.9215,204.01,203.93,0.063]
[1739158591718,2.6372,204.07,203.93,0.063]
[1739158591719,10.1718,204.02,203.93,0.063]
[1739158591908,0.12549,204.01,203.93,0.063]
[1739158592095,13.53733853,204.01,203.93,0.063]
[1739158592706,0.12549,204.0,203.93,0.063]
[1739158593017,13.66282853,203.98,203.93,0.063]
[1739158594423,13.66282853,203.96,203.85,0.063]
[1739158594635,14.66282853,203.96,203.85,0.063]
[1739158594819,0.25098,203.91,203.85,0.063]
[1739158595007,0.12549,203.88,203.82,0.063]
[1739158595210,13.53733853,203.89,203.82,0.063]
[1739158595535,0.12549,203.89,203.82,0.063]
[1739158595697,6.2505,203.92,203.82,0.063]
[1739158595894,6.2505,203.98,203.84,11.53352663]
[1739158596108,3.9222,203.97,203.84,11.53352663]
[1739158596323,13.53733853,203.96,203.82,11.59652663]
[1739158596499,6.2505,203.98,203.86,11.53352663]
[1739158597001,6.2505,203.98,203.89,20.0]
[1739158597205,1.6372,204.01,203.9,11.53352663]
[1739158597602,1.6372,204.01,203.88,11.53352663]
[1739158597797,0.12549,204.03,203.9,11.53352663]
[1739158598003,1.64369,204.08,203.9,11.53352663]
[1739158598004,1.5182,204.08,203.97,11.53352663]
[1739158598300,5.4383,204.08,203.95,20.0]
[1739158598520,5.4383,204.08,203.95,11.53352663]
[1739158598724,6.67765792,204.16,203.95,11.53352663]
[1739158598725,1.5182,204.16,204.02,11.53352663]
[1739158598908,6.5683,204.17,204.04,11.53352663]
[1739158599110,6.5683,204.17,204.07,11.53352663]
[1739158599322,6.5683,204.17,204.06,11.53352663]
[1739158599530,6.5683,204.17,204.05,3.9206]
[1739158599912,6.5683,204.17,204.07,11.53352663]
[1739158600114,6.5683,204.17,204.06,11.53352663]
[1739158600336,6.5683,204.17,204.04,11.53352663]
[1739158600562,10.4867,204.17,204.02,31.53352663]
[1739158600838,10.4867,204.17,204.02,35.45452663]
[1739158601231,10.4867,204.17,204.03,11.53352663]
[1739158601403,6.5683,204.17,204.05,11.53352663]
[1739158601607,6.5683,204.17,204.06,18.73958471]
[1739158601857,8.216,204.24,204.1,18.73958471]
[1739158602153,8.216,204.24,204.04,20.0]
[1739158602154,0.12549,204.23,204.04,20.0]
[1739158602358,13.66282853,204.23,204.04,20.0]
[1739158602652,8.216,204.24,204.11,18.73958471]
[1739158603020,0.12549,204.23,204.07,18.73958471]
[1739158603226,3.9173,204.22,204.07,3.9201]
[1739158603427,0.12549,204.21,204.04,23.55636753]
[1739158603660,3.9173,204.22,204.06,18.73958471]
[1739158603835,0.03,204.26,204.13,20.0]
[1739158604028,0.03,204.26,204.2,18.73958471]
[1739158604654,0.03,204.26,204.21,18.73958471]
[1739158604856,0.03,204.26,204.25,18.73958471]
[1739158605222,0.03,204.26,204.25,22.65628471]
[1739158606059,6.5683,204.39,204.25,22.65628471]
[1739158606352,3.9139,204.4,204.3,18.73958471]
[1739158606850,0.03,204.41,204.26,0.7340412]
[1739158606851,0.03,204.41,204.32,18.73958471]
[1739158607050,0.03,204.41,204.34,18.73958471]
[1739158607447,0.03,204.41,204.36,18.73958471]
[1739158607646,0.03,204.41,204.35,19.47346298]
[1739158607825,0.03,204.41,204.33,18.73958471]
[1739158608026,0.03,204.41,204.36,18.73958471]
[1739158608226,0.03,204.41,204.36,19.47339429]
[1739158608655,0.03,204.41,204.36,19.59888429]
[1739158609037,0.03,204.41,204.36,39.59888429]
[1739158609244,0.03,204.41,204.36,23.51348429]
[1739158609457,0.03,204.41,204.36,36.92533282]
[1739158610161,16.39336889,204.61,204.45,21.0]
[1739158610367,12.48346889,204.61,204.56,20.0]
[1739158610530,12.48346889,204.61,204.53,18.73958471]
[1739158611046,0.223,204.6,204.54,0.73316675]
[1739158611633,0.223,204.6,204.49,19.47273892]
[1739158611940,4.1331,204.6,204.49,0.73315421]
[1739158612155,4.1331,204.6,204.45,18.73958471]
[1739158612355,4.1331,204.6,204.43,18.73958471]
[1739158612556,0.12549,204.59,204.43,18.73958471]
[1739158612740,3.9101,204.6,204.45,18.73958471]
[1739158612948,0.223,204.58,204.52,20.0]
[1739158613244,0.223,204.58,204.57,20.0]
[1739158613440,0.223,204.58,204.57,19.4726551]
[1739158613752,0.223,204.58,204.57,18.73958471]
[1739158614558,0.223,204.58,204.55,18.73958471]
[1739158614761,0.223,204.58,204.53,18.73958471]
[1739158614969,0.223,204.58,204.49,18.73958471]
[1739158615269,0.223,204.58,204.47,18.73958471]
[1739158615640,0.223,204.58,204.52,20.0]
[1739158616146,0.223,204.58,204.45,19.4728749]
[1739158616344,0.223,204.58,204.45,22.65238471]
[1739158616860,0.223,204.58,204.48,20.0]
[1739158617068,0.223,204.58,204.51,18.73958471]
[1739158617443,0.223,204.58,204.44,19.47281069]
[1739158617648,4.1335,204.58,204.45,3.9128]
[1739158617852,4.1335,204.58,204.47,20.0]
[1739158618346,6.2263,204.56,204.45,18.73958471]
[1739158618562,12.48346889,204.61,204.51,18.73958471]
[1739158618740,0.223,204.58,204.49,18.73958471]
[1739158618939,0.253,204.58,204.45,18.73958471]
[1739158619164,0.253,204.58,204.43,18.73958471]
[1739158619466,0.253,204.58,204.46,3.9127]
[1739158619938,0.253,204.58,204.44,3.913]
[1739158619939,3.9106,204.57,204.44,3.913]
[1739158620136,3.9106,204.57,204.44,23.913]
[1739158620452,3.9106,204.57,204.38,3.9142]
[1739158620453,0.12549,204.54,204.38,3.9142]
[1739158620647,0.12549,204.5,204.33,18.73958471]
[1739158620853,6.2263,204.51,204.33,19.47345876]
[1739158621047,13.66282853,204.5,204.29,18.73958471]
[1739158621238,0.12549,204.47,204.26,3.9164]
[1739158621452,13.53733853,204.48,204.26,3.9164]
[1739158621453,3.9127,204.46,204.32,20.0]
[1739158621670,3.9123,204.49,204.35,18.73958471]
[1739158621852,3.9123,204.49,204.36,18.73958471]
[1739158622239,13.53733853,204.48,204.28,0.73388461]
[1739158622460,13.66282853,204.44,204.26,3.9164]
[1739158622666,13.41184853,204.46,204.27,0.7341852]
[1739158622850,3.9123,204.49,204.31,18.73958471]
[1739158623038,3.9123,204.49,204.27,0.7341852]
[1739158623039,13.66282853,204.44,204.25,0.063]
[1739158623238,1.0,204.43,204.25,0.063]
[1739158623443,13.66282853,204.36,204.25,0.063]
[1739158623641,13.66282853,204.37,204.25,0.063]
[1739158623936,33.66282853,204.37,204.25,0.063]
[1739158624143,3.9138,204.4,204.25,0.063]
[1739158624876,6.2263,204.41,204.3,18.73958471]
[1739158625058,1.6076,204.51,204.34,18.73958471]
[1739158625255,7.8339,204.51,204.36,18.73958471]
[1739158625441,7.8339,204.51,204.39,3.914]